Workbook

Sheet Templ
A1: 1
B4: Список участников соревнований | I4: Название соревнований
B5: № | C5: Гимнастка | D5: Год | E5: Разряд | F5: Город | G5: Тренер | J5: 1 | K5: 2 | L5: 3 | M5: 4 | N5: Оценка | O5: Сбавка | P5: Сумма | Q5: МЕСТО | T5: 1 | U5: 2 | V5: 3 | W5: 4 | X5: 5 | Y5: Оценка | Z5: Сбавка | AA5: Сумма | AB5: МЕСТО
B6: 1 | I6: D | N6: =(SUM(J6:M6)-(MIN(J6:M6)+MAX(J6:M6)))/2 -> 0 | P6: =SUM(N6:N7)-SUM(O6:O7) -> 0 | S6: D | Y6: =(SUM(T6:W6)-(MIN(T6:W6)+MAX(T6:W6)))/2 -> 0 | AA6: =SUM(Y6:Y7)-SUM(Z6:Z7) -> 0
B7: =B6+1 -> 2 | I7: E | N7: =(SUM(J7:M7)-(MIN(J7:M7)+MAX(J7:M7)))/2 -> 0 | S7: E | Y7: =(SUM(T7:X7)-(MIN(T7:X7)+MAX(T7:X7)))/3 -> 0
C15: Сводный протокол
B19: № | C19: Команда/Гимнастка | D19: г.р. | E19: Разряд | F19: Город | G19: Тренер | J19: 1 | K19: 2 | L19: 3 | M19: 4 | N19: Оценка | O19: Сбавка | P19: Сумма | Q19: МЕСТО
B20: 1 | I20: D1 | N20: =(SUM(J20:M20)-(MIN(J20:M20)+MAX(J20:M20)))/2 -> 0 | P20: =SUM(N20:N23)-SUM(O20:O23) -> 0
I21: D2 | N21: 0
I22: A | N22: =(SUM(J22:M22)-(MIN(J22:M22)+MAX(J22:M22)))/2 -> 0
I23: E | N23: =(SUM(J23:M23)-(MIN(J23:M23)+MAX(J23:M23)))/2 -> 0
C30: Главный судья
C32: Главный секретарь

Sheet Data
C2: Вид соревнований | D2: Индивидуальные
C3: Число участников | D3: 8
C5: Количество видов: | D5: 1
C6: Вид оценки: | D6: 5
B8: Список участников соревнований | I8: Жеребьевка
B9: № | C9: Гимнастка | D9: Год | E9: Разряд | F9: Город | G9: Тренер | I9: № | J9: Гимнастка | K9: Год | L9: Разряд | M9: Город
B10: 1 | C10: Dulgheru Nicoleta | D10: 1999 | E10: 20438 | F10: MDA | I10: =$B$10 -> 1 | J10: =$C$10 -> Dulgheru Nicoleta | K10: =$D$10 -> 1999 | L10: =$E$10 -> 20438 | M10: =$F$10 -> MDA
B11: =B10+1 -> 2 | C11: Kindelan Casanas Melissa Marian | D11: 1999 | E11: 21737 | F11: CUB | I11: =$B$11 -> 2 | J11: =$C$11 -> Kindelan Casanas Melissa Marian | K11: =$D$11 -> 1999 | L11: =$E$11 -> 21737 | M11: =$F$11 -> CUB
B12: 3 | C12: Mainovskaya Yelizaveta | D12: 1999 | E12: 22863 | F12: KAZ | I12: =$B$16 -> 7 | J12: =$C$16 -> Osokin Ksenia | K12: =$D$16 -> 2001 | L12: =$E$16 -> 29146 | M12: =$F$16 -> ISR
B13: 4 | C13: Balickaya Margaritaa | D13: 2001 | F13: UKR | I13: =$B$15 -> 6 | J13: =$C$15 -> Maria Pires Delgado Testas | K13: =$D$15 -> 2000 | L13: =$E$15 -> 22900 | M13: =$F$15 -> POR
B14: 5 | C14: Le Thi Mai Huong | D14: 1999 | E14: 22843 | F14: CZE | I14: =$B$13 -> 4 | J14: =$C$13 -> Balickaya Margaritaa | K14: =$D$13 -> 2001 | L14: =$E$13 ->  | M14: =$F$13 -> UKR
B15: 6 | C15: Maria Pires Delgado Testas | D15: 2000 | E15: 22900 | F15: POR | I15: =$B$12 -> 3 | J15: =$C$12 -> Mainovskaya Yelizaveta | K15: =$D$12 -> 1999 | L15: =$E$12 -> 22863 | M15: =$F$12 -> KAZ
B16: 7 | C16: Osokin Ksenia | D16: 2001 | E16: 29146 | F16: ISR | I16: =$B$14 -> 5 | J16: =$C$14 -> Le Thi Mai Huong | K16: =$D$14 -> 1999 | L16: =$E$14 -> 22843 | M16: =$F$14 -> CZE
B17: 8 | C17: Annenkova Irina | D17: 1999 | E17: 23094 | F17: RUS Moskow | I17: =$B$17 -> 8 | J17: =$C$17 -> Annenkova Irina | K17: =$D$17 -> 1999 | L17: =$E$17 -> 23094 | M17: =$F$17 -> RUS Moskow

Sheet Вид 1
D1: 2 | E1: 9 | F1: 13
B9: № | C9: Гимнастка | E9: 1 | F9: 2 | G9: 3 | H9: 4 | I9: 5 | J9: Оценка | K9: Сбавка | L9: Сумма | M9: МЕСТО
B10: =Data!$B$10 -> 1 | C10: =Data!$C$10 -> Dulgheru Nicoleta | D10: D | E10: 6.4 | F10: 7 | G10: 7.1 | H10: 7.5 | J10: =(SUM(E10:H10)-(MIN(E10:H10)+MAX(E10:H10)))/2 -> 7.05 | L10: =SUM(J10:J11)-SUM(K10:K11) -> 15.58333333 | M10: =RANK(L10,$L$10:$L$25,0) -> 2
D11: E | E11: 8.7 | F11: 8.5 | G11: 8.6 | H11: 8.5 | I11: 8.3 | J11: =(SUM(E11:I11)-(MIN(E11:I11)+MAX(E11:I11)))/3 -> 8.533333333
B12: =Data!$B$11 -> 2 | C12: =Data!$C$11 -> Kindelan Casanas Melissa Marian | D12: D | J12: =(SUM(E12:H12)-(MIN(E12:H12)+MAX(E12:H12)))/2 -> 0 | L12: 14.617 | M12: =RANK(L12,$L$10:$L$25,0) -> 4
D13: E | J13: =(SUM(E13:I13)-(MIN(E13:I13)+MAX(E13:I13)))/3 -> 0
B14: =Data!$B$16 -> 7 | C14: =Data!$C$16 -> Osokin Ksenia | D14: D | J14: =(SUM(E14:H14)-(MIN(E14:H14)+MAX(E14:H14)))/2 -> 0 | L14: 13.75 | M14: =RANK(L14,$L$10:$L$25,0) -> 6
D15: E | J15: =(SUM(E15:I15)-(MIN(E15:I15)+MAX(E15:I15)))/3 -> 0
B16: =Data!$B$15 -> 6 | C16: =Data!$C$15 -> Maria Pires Delgado Testas | D16: D | E16: 5.1 | F16: 4.7 | G16: 4 | H16: 5 | J16: =(SUM(E16:H16)-(MIN(E16:H16)+MAX(E16:H16)))/2 -> 4.85 | L16: =SUM(J16:J17)-SUM(K16:K17) -> 12.28333333 | M16: =RANK(L16,$L$10:$L$25,0) -> 8
D17: E | E17: 7.4 | F17: 7.9 | G17: 7.5 | H17: 7.4 | I17: 7.1 | J17: =(SUM(E17:I17)-(MIN(E17:I17)+MAX(E17:I17)))/3 -> 7.433333333
B18: =Data!$B$13 -> 4 | C18: =Data!$C$13 -> Balickaya Margaritaa | D18: D | J18: =(SUM(E18:H18)-(MIN(E18:H18)+MAX(E18:H18)))/2 -> 0 | L18: 14.35 | M18: =RANK(L18,$L$10:$L$25,0) -> 5
D19: E | J19: =(SUM(E19:I19)-(MIN(E19:I19)+MAX(E19:I19)))/3 -> 0
B20: =Data!$B$12 -> 3 | C20: =Data!$C$12 -> Mainovskaya Yelizaveta | D20: D | J20: =(SUM(E20:H20)-(MIN(E20:H20)+MAX(E20:H20)))/2 -> 0 | L20: 15.033 | M20: =RANK(L20,$L$10:$L$25,0) -> 3
D21: E | J21: =(SUM(E21:I21)-(MIN(E21:I21)+MAX(E21:I21)))/3 -> 0
B22: =Data!$B$14 -> 5 | C22: =Data!$C$14 -> Le Thi Mai Huong | D22: D | E22: 6.2 | F22: 5.4 | G22: 4.3 | H22: 5.8 | J22: =(SUM(E22:H22)-(MIN(E22:H22)+MAX(E22:H22)))/2 -> 5.6 | L22: =SUM(J22:J23)-SUM(K22:K23) -> 13.2 | M22: =RANK(L22,$L$10:$L$25,0) -> 7
D23: E | E23: 7.9 | F23: 7.9 | G23: 7.6 | H23: 7.3 | I23: 6.7 | J23: =(SUM(E23:I23)-(MIN(E23:I23)+MAX(E23:I23)))/3 -> 7.6
B24: =Data!$B$17 -> 8 | C24: =Data!$C$17 -> Annenkova Irina | D24: D | E24: 7.8 | F24: 7.5 | G24: 7.3 | H24: 7.8 | J24: =(SUM(E24:H24)-(MIN(E24:H24)+MAX(E24:H24)))/2 -> 7.65 | L24: =SUM(J24:J25)-SUM(K24:K25) -> 16.35 | M24: =RANK(L24,$L$10:$L$25,0) -> 1
D25: E | E25: 8.6 | F25: 8.6 | G25: 8.7 | H25: 8.8 | I25: 8.8 | J25: =(SUM(E25:I25)-(MIN(E25:I25)+MAX(E25:I25)))/3 -> 8.7

Sheet Protocol
C8: Сводный протокол | D8: Мяч
B9: № | C9: Гимнастка | D9: Год | E9: Разряд | F9: Город | G9: Тренер | H9: Вид 1 | I9: Сумма | J9: Место
B10: 1 | C10: =IF(ISBLANK(Data!$C$17), "", Data!$C$17) -> Annenkova Irina | D10: =IF(ISBLANK(Data!$D$17), "", Data!$D$17) -> 1999 | E10: =IF(ISBLANK(Data!$E$17), "", Data!$E$17) -> 23094 | F10: =IF(ISBLANK(Data!$F$17), "", Data!$F$17) -> RUS Moskow | G10: =IF(ISBLANK(Data!$G$17), "", Data!$G$17) ->  | H10: ='Вид 1'!$L$24 -> 16.35 | I10: =SUM(H10:H10) -> 16.35 | J10: =RANK(I10,$I$10:$I$17,0) -> 1
B11: 2 | C11: =IF(ISBLANK(Data!$C$10), "", Data!$C$10) -> Dulgheru Nicoleta | D11: =IF(ISBLANK(Data!$D$10), "", Data!$D$10) -> 1999 | E11: =IF(ISBLANK(Data!$E$10), "", Data!$E$10) -> 20438 | F11: =IF(ISBLANK(Data!$F$10), "", Data!$F$10) -> MDA | G11: =IF(ISBLANK(Data!$G$10), "", Data!$G$10) ->  | H11: ='Вид 1'!$L$10 -> 15.58333333 | I11: =SUM(H11:H11) -> 15.58333333 | J11: =RANK(I11,$I$10:$I$17,0) -> 2
B12: 3 | C12: =IF(ISBLANK(Data!$C$12), "", Data!$C$12) -> Mainovskaya Yelizaveta | D12: =IF(ISBLANK(Data!$D$12), "", Data!$D$12) -> 1999 | E12: =IF(ISBLANK(Data!$E$12), "", Data!$E$12) -> 22863 | F12: =IF(ISBLANK(Data!$F$12), "", Data!$F$12) -> KAZ | G12: =IF(ISBLANK(Data!$G$12), "", Data!$G$12) ->  | H12: ='Вид 1'!$L$20 -> 15.033 | I12: =SUM(H12:H12) -> 15.033 | J12: =RANK(I12,$I$10:$I$17,0) -> 3
B13: 4 | C13: =IF(ISBLANK(Data!$C$11), "", Data!$C$11) -> Kindelan Casanas Melissa Marian | D13: =IF(ISBLANK(Data!$D$11), "", Data!$D$11) -> 1999 | E13: =IF(ISBLANK(Data!$E$11), "", Data!$E$11) -> 21737 | F13: =IF(ISBLANK(Data!$F$11), "", Data!$F$11) -> CUB | G13: =IF(ISBLANK(Data!$G$11), "", Data!$G$11) ->  | H13: ='Вид 1'!$L$12 -> 14.617 | I13: =SUM(H13:H13) -> 14.617 | J13: =RANK(I13,$I$10:$I$17,0) -> 4
B14: 5 | C14: =IF(ISBLANK(Data!$C$13), "", Data!$C$13) -> Balickaya Margaritaa | D14: =IF(ISBLANK(Data!$D$13), "", Data!$D$13) -> 2001 | E14: =IF(ISBLANK(Data!$E$13), "", Data!$E$13) ->  | F14: =IF(ISBLANK(Data!$F$13), "", Data!$F$13) -> UKR | G14: =IF(ISBLANK(Data!$G$13), "", Data!$G$13) ->  | H14: ='Вид 1'!$L$18 -> 14.35 | I14: =SUM(H14:H14) -> 14.35 | J14: =RANK(I14,$I$10:$I$17,0) -> 5
B15: 6 | C15: =IF(ISBLANK(Data!$C$16), "", Data!$C$16) -> Osokin Ksenia | D15: =IF(ISBLANK(Data!$D$16), "", Data!$D$16) -> 2001 | E15: =IF(ISBLANK(Data!$E$16), "", Data!$E$16) -> 29146 | F15: =IF(ISBLANK(Data!$F$16), "", Data!$F$16) -> ISR | G15: =IF(ISBLANK(Data!$G$16), "", Data!$G$16) ->  | H15: ='Вид 1'!$L$14 -> 13.75 | I15: =SUM(H15:H15) -> 13.75 | J15: =RANK(I15,$I$10:$I$17,0) -> 6
B16: 7 | C16: =IF(ISBLANK(Data!$C$14), "", Data!$C$14) -> Le Thi Mai Huong | D16: =IF(ISBLANK(Data!$D$14), "", Data!$D$14) -> 1999 | E16: =IF(ISBLANK(Data!$E$14), "", Data!$E$14) -> 22843 | F16: =IF(ISBLANK(Data!$F$14), "", Data!$F$14) -> CZE | G16: =IF(ISBLANK(Data!$G$14), "", Data!$G$14) ->  | H16: ='Вид 1'!$L$22 -> 13.2 | I16: =SUM(H16:H16) -> 13.2 | J16: =RANK(I16,$I$10:$I$17,0) -> 7
B17: 8 | C17: =IF(ISBLANK(Data!$C$15), "", Data!$C$15) -> Maria Pires Delgado Testas | D17: =IF(ISBLANK(Data!$D$15), "", Data!$D$15) -> 2000 | E17: =IF(ISBLANK(Data!$E$15), "", Data!$E$15) -> 22900 | F17: =IF(ISBLANK(Data!$F$15), "", Data!$F$15) -> POR | G17: =IF(ISBLANK(Data!$G$15), "", Data!$G$15) ->  | H17: ='Вид 1'!$L$16 -> 12.28333333 | I17: =SUM(H17:H17) -> 12.28333333 | J17: =RANK(I17,$I$10:$I$17,0) -> 8
C20: Главный судья
C22: Главный секретарь
